Cogmind - Beta 16 @@@ ROGUE MODE // 2025.11.19 @ 10:11:50 Player: Jamba27 Result: Destroyed by S-10 Pest with Light Assault Rifle Performance ------------- Evolutions (0) 0 Regions Visited (2) 400 Robots Destroyed (19) 95 Value Destroyed (443) 443 Prototype IDs (3) 60 Alien Tech Used (0) 0 Bonus (0) 0 TOTAL SCORE: 998 Bonus ------- None Cogmind --------- Core Integrity 0/250 Matter 285/300 Energy 100/100 System Corruption 1% Temperature Cool (0) Movement Treading (160) Location -10/Subcaves Parts ------- > --- POWER (1) -------- (None) > --- PROPULSION (2) --- Light Treads (fused) > --- UTILITY (2) ------ Medium Storage Unit Signal Interpreter > --- WEAPON (2) ------- Assault Rifle Subdweller Machine Gun > --- INVENTORY (10) --- Light Ion Engine Light Nuclear Core High-capacity Storage Unit Weight Redist. System Sensor Array Utility Shielding Light Armor Plating Assault Rifle Assault Rifle Mining Laser Peak State ------------ > --- POWER ------------ Ion Engine > --- PROPULSION ------- Light Treads Light Treads > --- UTILITY ---------- Medium Storage Unit Signal Interpreter > --- WEAPON ----------- Assault Rifle Subdweller Machine Gun > --- INVENTORY -------- Light Ion Engine Light Nuclear Core High-capacity Storage Unit Weight Redist. System Sensor Array Utility Shielding Light Armor Plating Assault Rifle Assault Rifle Mining Laser [Rating: 9] Favorites ----------- Power Ion Engine Engine Ion Engine Propulsion Light Treads Treads Light Treads Utility Signal Interpreter Storage Medium Storage Unit Processor Signal Interpreter Weapon Assault Rifle Ballistic Gun Assault Rifle Special Weapon Mining Laser Build | -11 -10 -10 ------- Run | Yrd Mat Sub Slots Evolved . | . . . Power . | . . . Propulsion . | . . . Utility . | . . . Weapon . | . . . Parts Attached 11 | 6 4 1 Power 1 | 1 . . Engine 1 | 1 . . Core . | . . . Reactor . | . . . Propulsion 2 | 2 . . Treads 2 | 2 . . Leg . | . . . Wheel . | . . . Hover . | . . . Flight . | . . . Utility 3 | 1 2 . Device . | . . . Storage 2 | 1 1 . Processor 1 | . 1 . Hackware . | . . . Protection . | . . . Artifact . | . . . Weapon 5 | 2 2 1 Energy Gun . | . . . Energy Cannon . | . . . Ballistic Gun 4 | 2 1 1 Ballistic Cannon . | . . . Launcher . | . . . Special Weapon 1 | . 1 . Impact Weapon . | . . . Slashing Weapon . | . . . Piercing Weapon . | . . . Special Melee Weapon . | . . . Unidentified Prototypes . | . . . Parts Lost 2 | . . 2 Power 1 | . . 1 Propulsion 1 | . . 1 Utility . | . . . Weapon . | . . . Highest Loss Streak 2 | . . 2 To Critical Strikes . | . . . Average Backups 6 | 1 6 9 Power 1 | . 1 2 Propulsion . | . . . Utility 3 | . 3 5 Weapon 1 | . 1 2 Tool/Special . | . . . Unused Backups 7 | . . 7 Power 2 | . . 2 Propulsion . | . . . Utility 5 | . . 5 Weapon . | . . . Tool/Special . | . . . Average Slot Usage (%) 97 | . 98 88 Engine 13 | . 13 8 Treads 26 | . 27 22 Storage 14 | . 14 14 Processor 13 | . 13 14 Ballistic Gun 23 | . 22 28 Special Weapon 4 | . 5 . Peak Build Rating 9 | 6 8 9 Average Rating 7 | 5 7 7 On Entrance 4 | . 6 8 Avg Prop Armor Cover (%) . | . . . Naked Turns . | . . . Heaviest Build 21 | 14 19 21 Greatest Support 40 | 40 40 40 Greatest Overweight (x) 1 | . . 1 Average Overweight (x) . | . . . Largest Inventory Capacity 10 | 8 10 10 Average Capacity 9 | 7 9 10 Most Carried 10 | 2 10 10 Average Carried 6 | 1 6 9 Final Capacity 10 | 8 10 10 Final Carried 10 | 2 10 10 Class Distribution -------------------- 100% | Mutant Dominant Class ---------------- Mutant | -10/Materials Mutant | -10/Subcaves Resources | -11 -10 -10 ----------- Run | Yrd Mat Sub Matter Collected 748 | 181 438 129 Remotely . | . . . Salvage Created 573 | . 415 158 Parts 50 | . 35 15 Haulers Intercepted 1 | . 1 . Recyclers Shooed . | . . . Parts Field Recycled . | . . . Retrieved Matter . | . . . Parts Self-Destructed 5 | . . 5 Prevented . | . . . Parts Restored . | . . . Kills | -11 -10 -10 ------- Run | Yrd Mat Sub Combat Hostiles Destroyed 13 | . 8 5 Guns 13 | . 8 5 Classes Destroyed 7 | . 5 2 Worker 2 | . 2 . Hauler 1 | . 1 . Watcher 3 | . 3 . Swarmer 5 | . 3 2 Grunt 5 | . 5 . Sentry 1 | . . 1 Subdweller 2 | . . 2 Best Kill Streak 4 | . 4 2 Combat Bots Only 4 | . 4 2 Max Kills in Single Turn 2 | . 2 1 Gunslinging . | . . . Exploded . | . . . Melee . | . . . Uniques/NPCs Destroyed . | . . . Combat | -11 -10 -10 -------- Run | Yrd Mat Sub Hostile Shots Fired 98 | . 56 42 Missed 25 | . 13 12 Hits 73 | . 43 30 Projectile 73 | . 43 30 Critical Strikes 4 | . 2 2 Damage Taken 1081 | . 515 566 Core 252 | . 44 208 Absorbed by Shields . | . . . Regen/Repaired (Parts) 450 | . 450 . Core Remaining (%) 100 | 100 . . Volleys Fired 69 | . 52 17 Largest 2 | . 2 2 Hottest 100 | . 100 50 Shots Fired 136 | . 102 34 Gun 133 | . 99 34 Cannon . | . . . Launcher . | . . . Special 3 | . 3 . Kinetic 133 | . 99 34 Thermal 3 | . 3 . Explosive . | . . . Electromagnetic . | . . . Robot Hit Streak 10 | . 7 10 Robot Miss Streak 4 | . 4 2 Penetration Max . | . . . Secondary Targets 1 | . 1 . Max Gunslinging Chain 1 | . 1 . Shots Hit Robots 74 | . 53 21 Core Hits 30 | . 23 7 Critical Kills 1 | . . 1 Critical Parts Destroyed . | . . . Critical Strikes 1 | . . 1 Destroy 1 | . . 1 Melee Attacks . | . . . Impact . | . . . Slashing . | . . . Piercing . | . . . Sneak Attacks . | . . . Combat Hostiles . | . . . Follow-up Attacks . | . . . Damage Inflicted 983 | . 733 250 Guns 983 | . 733 250 Cannons . | . . . Explosions . | . . . Melee . | . . . Ramming . | . . . Kinetic 983 | . 733 250 Thermal . | . . . Explosive . | . . . Electromagnetic . | . . . Impact . | . . . Slashing . | . . . Piercing . | . . . Highest Corruption 1 | . 1 1 Average Corruption 1 | . 1 1 Corruption Purged . | . . . Corruption Blocked . | . . . Effects 13 | . 12 1 Message Errors 5 | . 5 . Matter Fused 2 | . 2 . Heat Flow Errors 1 | . . 1 Energy Discharges 2 | . 2 . Parts Fused 1 | . 1 . Misfires 2 | . 2 . Overload Shots . | . . . Overflow Damage . | . . . Projectiles . | . . . Explosions . | . . . Melee . | . . . Knockbacks . | . . . Impact . | . . . Kinetic . | . . . Secondary . | . . . Self-Inflicted Damage . | . . . Shots . | . . . Rammed . | . . . Targets Rammed . | . . . Kicked . | . . . Crushed . | . . . Highest Temperature 221 | . 40 221 Average Temperature 30 | . 10 96 Received Heat Transfer 628 | . 270 358 Siege Activations . | . . . Martial Activations . | . . . Shielding Activations . | . . . Robots Disrupted . | . . . Combat Hostiles . | . . . Robots Corrupted . | . . . Combat Hostiles . | . . . Parts Fried . | . . . Impact Corruptions . | . . . Robots Melted . | . . . Combat Hostiles . | . . . Parts Melted 1 | . . 1 Heat Transferred . | . . . Parts Sabotaged . | . . . Parts Stolen . | . . . Parts Stripped . | . . . Power Chain Reactions . | . . . Alert | -11 -10 -10 ------- Run | Yrd Mat Sub Maximum Alert Level . | . . . Low Security (%) 100 | 100 100 . Level 1 . | . . . Level 2 . | . . . Level 3 . | . . . Level 4 . | . . . Level 5 . | . . . High Security . | . . . Max Security . | . . . Peak Influence 126 | . 126 . Initial . | . . . Average 30 | . 32 . Influence Increases 429 | . 369 60 Destroy 0b10 Robot/C 220 | . 160 60 Destroy 0b10 Robot/NC 30 | . 30 . Destroy Leader 48 | . 48 . Successful Hack 54 | . 54 . Disable Machine 30 | . 30 . Destroy Structure 2 | . 2 . Lose Combat Pursuer 45 | . 45 . Influence Decreases 389 | . 369 20 Time Decay 389 | . 369 20 Squads Dispatched 1 | . 1 . Investigation 1 | . 1 . Extermination . | . . . Reinforcement . | . . . Assault . | . . . Garrison . | . . . Intercept . | . . . Searches Triggered . | . . . Construction Impeded . | . . . Haulers Reinforced . | . . . Active Scanning Responses . | . . . Cargo Convoy Interrupts . | . . . Stealth | -11 -10 -10 --------- Run | Yrd Mat Sub Distress Signals 3 | . 3 . Communications Jammed . | . . . Distress Signals . | . . . Times Spotted 23 | . 15 8 Peak Tracking Total 5 | . 5 4 Tactical Retreats 1 | . 1 . Traps | -11 -10 -10 ------- Run | Yrd Mat Sub Traps Triggered . | . . . Indirectly . | . . . Trap Hack Attempts . | . . . Triggered . | . . . Disarmed . | . . . Reprogrammed . | . . . Reused . | . . . Traps Extracted . | . . . Installed . | . . . Triggered . | . . . Machines | -11 -10 -10 ---------- Run | Yrd Mat Sub Machines Disabled 3 | . 3 . Max in Single Turn 1 | . 1 . Machines Repaired . | . . . Machines Dismantled . | . . . Machines Sabotaged . | . . . Overloaded Fab Kills . | . . . Hacking | -11 -10 -10 --------- Run | Yrd Mat Sub Machines Accessed 9 | . 9 . Terminals 8 | . 8 . Fabricators . | . . . Repair Stations 1 | . 1 . Recycling Units . | . . . Scanalyzers . | . . . Garrison Access . | . . . Total Hacks 46 | . 46 . Successful 31 | . 31 . Failed 15 | . 15 . Catastrophic 3 | . 3 . Database Lockouts . | . . . Manual 27 | . 27 . Terminals 34 | . 34 . Fabricators . | . . . Repair Stations 12 | . 12 . Recycling Units . | . . . Scanalyzers . | . . . Garrison Access . | . . . Terminal Hacks 12 | . 12 . Record 1 | . 1 . Part Schematic 2 | . 2 . Robot Schematic 1 | . 1 . Robot Analysis 1 | . 1 . Prototype ID Bank 2 | . 2 . Terminal Index 1 | . 1 . Scanalyzer Index 1 | . 1 . Locate Traps 1 | . 1 . Zone Layout 2 | . 2 . Fabricator Hacks . | . . . Repair Station Hacks 12 | . 12 . Scan Component 6 | . 6 . Repair 6 | . 6 . Recycling Unit Hacks . | . . . Scanalyzer . | . . . Garrison Access Hacks . | . . . Unauthorized Hacks 7 | . 7 . Terminals 7 | . 7 . Track 1 | . 1 . Assimilate 2 | . 2 . Botnet 4 | . 4 . Fabricators . | . . . Repair Stations . | . . . Recycling Units . | . . . Scanalyzers . | . . . Garrison Access . | . . . Data Cores Recovered . | . . . Used . | . . . Hacking Detections 9 | . 9 . Full Trace Events 5 | . 5 . Feedback Events 1 | . 1 . Corruption 1 | . 1 . Feedback Blocked . | . . . Robot Schematics Acquired 1 | . 1 . Robots Built . | . . . Authchips . | . . . Time . | . . . Total Robot Build Rating . | . . . Part Schematics Acquired 2 | . 2 . Parts Built . | . . . Authchips . | . . . Time . | . . . Total Part Build Rating . | . . . Part Studies Acquired . | . . . Parts Repaired 6 | . 6 . Time 156 | . 156 . Parts Recycled . | . . . Recycled Matter . | . . . Retrieved Matter . | . . . Retrieved Components . | . . . Parts Scanalyzed . | . . . Part Schematics Acquired . | . . . Parts Damaged . | . . . Bothacking | -11 -10 -10 ------------ Run | Yrd Mat Sub Used RIF Installer . | . . . Robots Hacked . | . . . Non-combat . | . . . Combat . | . . . Robot Hacks Applied . | . . . Relay Couplers Released . | . . . Fabnet Peak Effective % . | . . . Robots Rewired . | . . . Allies Hacked . | . . . Hacks Repelled . | . . . Allies | -11 -10 -10 -------- Run | Yrd Mat Sub Total Allies . | . . . Largest Group . | . . . Highest-Rated Group . | . . . Highest-Rated Ally . | . . . Total Orders . | . . . Ally Attacks . | . . . Total Damage . | . . . Kills . | . . . Allies Corrupted . | . . . Allies Melted . | . . . Intel | -11 -10 -10 ------- Run | Yrd Mat Sub Active Infowar (turns) . | . . . Robot Analysis Total 1 | . 1 . Derelict Logs Recovered . | . . . Drone Launches . | . . . Drone Recoveries . | . . . Exploration | -11 -10 -10 ------------- Run | Yrd Mat Sub Turns Passed 1821 | 80 1508 233 Spaces Moved 809 | 44 662 103 Core 2 | 2 . . Treads 807 | 42 662 103 Legs . | . . . Wheels . | . . . Hover . | . . . Flight . | . . . Fastest Speed 50 | 50 160 160 Average Speed 159 | 155 160 160 Slowest Speed 240 | 160 160 240 Overloaded Moves . | . . . Propulsion Burnouts . | . . . Robots Hopped . | . . . Potential Cave-ins . | . . . Cave-ins Triggered . | . . . Exploration Rate (%) 32 | 3 85 10 Regions Visited 2 Branch Regions 1 Pre-discovered Areas . | . . . Known Exits Taken 1 | . 1 . Unknown Exits Taken 1 | 1 . . Scrap Searched . | . . . Spaces Dug 2 | . 2 . Terrain Destroyed 2 | . 2 . Melee . | . . . Projectile 2 | . 2 . AOE . | . . . Terrain Rammed . | . . . Walls Destroyed . | . . . Machines Disabled . | . . . Actions | -11 -10 -10 --------- Run | Yrd Mat Sub Total 1190 | 53 1000 137 Wait 283 | 2 267 14 Move 807 | 43 661 103 Hop . | . . . Pick Up 13 | 2 10 1 Fast Attach 9 | 6 3 . Attach 1 | . 1 . Detach . | . . . Swap 7 | . 6 1 Drop 1 | . . 1 Fire 69 | . 52 17 Melee . | . . . Ram . | . . . Kick . | . . . Crush . | . . . Escape Stasis . | . . . Rewire . | . . . Trap . | . . . Miscellaneous . | . . . Route ------- -11/Scrapyard -10/Materials (discovered 6 exits: *Mat x3 / *Min x2 / *Sub) -10/Subcaves History --------- Turn | Location | Event 39 | -11/Scrapyard | Discovered new exit (range 13) 81 | -11/Scrapyard | Entered Materials 157 | -10/Materials | Discovered new exit (range 7) 169 | -10/Materials | Identified exit to Subcaves 277 | -10/Materials | Discovered new exit (range 14) 310 | -10/Materials | Build established: Mutant 510 | -10/Materials | Discovered new exit (range 5) 515 | -10/Materials | Identified exit to Materials 767 | -10/Materials | Identified exit to Mines 814 | -10/Materials | Discovered exit to Mines (range 10) 978 | -10/Materials | Discovered exit to Materials (range 16) 1019 | -10/Materials | Repaired Lgt. Treads 1046 | -10/Materials | Repaired Lgt. Treads 1074 | -10/Materials | Repaired Assault Rifle 1101 | -10/Materials | Repaired Assault Rifle 1128 | -10/Materials | Repaired Ion Engine 1156 | -10/Materials | Repaired Assault Rifle 1356 | -10/Materials | Discovered exit to Materials (range 14) 1589 | -10/Materials | Entered Subcaves 1590 | -10/Subcaves | Approached by a straggling Scientist 1674 | -10/Subcaves | Core integrity fell below 50% 1754 | -10/Subcaves | Core integrity fell below 20% 1822 | -10/Subcaves | Destroyed by S-10 Pest with Light Assault Rifle Last Messages --------------- in all directions. 01695_ C1-9ZP(c) destroyed. 01698_ Tech Extrapolator violently self-destructs. 01699_ Acquired 11 matter. 01705_ Subatomizers dissect the Sub. Monowheel. 01728_ Lgt. Treads destroyed. 01739_ Ion Engine destroyed. 01755_ Y-45 Defender suffers critical hit (Destroy). 01755_ Y-45 Defender destroyed. 01761_ Heat Sink fries itself beyond repair. 01763_ Hvy. Assault Rifle fries itself beyond repair. 01768_ Lgt. Treads fries itself beyond repair. 01768_ Acquired 37 matter. 01771_ Lgt. Treads fries itself beyond repair. 01773_ Heat Sink fries itself beyond repair. 01812_ S-10 Pest destroyed. Map ----- +----------------------------------------------------+ | ?????????????????????????????????????????????????? | | ?????????????????????????????????????????????????? | | ?????????????????????????????????????????????????? | | ?????????????????????????????????????????????????? | | ?????????????????????????????????????????????????? | | ?????????????????????????????????????????????????? | | ?????????????????????????????????????????????????? | | ?????????????????????????????????????????????????? | | ?????????????????????????????????????????????????? | | ?????????????????????????????????????????????????? | | ??????????????????????? ???????????????????????? | | ??????????????????????# ??##???????????????????? | | ??????????????????????# ## ?????????????????? | | ??????????????????????# ?????????????????? | | ??????????????????#### ?????????????????? | | ??????????????????? ?????????????????? | | ??????????????????? ??????????????????? | | ??????????????????? ??????????????????? | | ???????????????????# ???????????????????? | | ???????????????????# ????????????????????? | | ???????????????????? ????????????????????? | | ????????????????????# ?????????????????????? | | ???????????????????## #?????????????????????? | | ??????????????????## ##ss#?????????????????????? | | ??????????????????# %## #?????????????????????? | | ??????????????????# %[@ #???##????????????????? | | ??????????????????# ## #??? ##?###???????????? | | ??????????????????# #?## #### ### ##??????????? | | ??????????????????# ???# #??????????? | | ??????????????????##????# #??????????? | | ????????????????????????# ## #??????????? | | ????????????????????????#### ### ##?????????? | | ???????????????????????????# ## #?????????? | | ??????????????????????????## ## #?????????? | | ??????????????????????????# ## ##????????? | | ??????????????????????????# ## ##???##### | | ??????????????????????????# # #???# | | ??????????????????????????# # #?????# | | ??????????????????????????## # ##?????# | | ???????????????????????????## % ######### | | ????????????????????????????### ### | | ??????????????????????????????#### | | ?????????????????????????????????# | | ?????????????????????????????????# ## # # | | ?????????????????????????????????#% ### ##### | | ????????????????????????????????# #?## #??? | | ????????????????????????????????# #?## #?? | | ????????????????????????????????# ??#####?? | | ????????????????????????????????### #???????? | | ??????????????????????????????????## #???????? | +----------------------------------------------------+ Best States ------------- Heat Dissipation 25 Energy Generation 10 Energy Capacity 250 Matter Stores 300 Matter Capacity 300 Sight Range 16 Terrain Scan Density 10 Evasion (%) 40 Recoil Reduction 2 Item Schematics ----------------- Lgt. Treads | -10/Materials | Hacked Targeting Computer | -10/Materials | Hacked Robot Schematics ------------------ G-34 Mercenary | -10/Materials | Hacked Fabricated ------------ Nothing Repaired ---------- Lgt. Treads | 8% | -10/Materials Lgt. Treads | 16% | -10/Materials Assault Rifle | 14% | -10/Materials Assault Rifle | 46% | -10/Materials Ion Engine | 36% | -10/Materials Assault Rifle | 73% | -10/Materials Studied --------- None Alien Tech Used ----------------- None Achievements -------------- None Challenges ------------ None Game ------ Seed BehemothGuidanceJetlance Manual? 0 Play Time 00:20:27 Cumulative 31.1 hours Start 2025.11.18 @ 20:56:52 End 2025.11.19 @ 10:11:50 Sessions 2 Manual Loads 0 Difficulty Rogue Special Mode None Game No. 30 Rogue 30 Adventurer 0 Explorer 0 Win Type - Total 0 Types 0/0/0/0/0/0/0/0/0/0 Lore% 19 Gallery% 27 Achievement% 19 Wizard Run 0 Options --------- Layout 1 ASCII 0 Keyboard 0 Movement Mouse Keybinds 0 Fullscreen 1 Font 24/Smallcaps Map View 50x35 Zoom Use 0% Tactical HUD 1 Map Filters NONE Filters NONE Steam 1 RUN: ff2e7141-c574-45be-ac9c-8c458cfbc28e